Cogmind - Beta 16 @@@ ROGUE MODE // 2025.11.20 @ 11:27:28 // Winter2019/RPGLIKE Player: Jaegerpls Result: Destroyed by G-47 Trooper with Particle Gun Performance ------------- Evolutions (0) 0 Regions Visited (2) 400 Robots Destroyed (28) 140 Value Destroyed (879) 879 Prototype IDs (0) 0 Alien Tech Used (0) 0 Bonus (0) 0 TOTAL SCORE: 1419 Bonus ------- None Cogmind --------- Core Integrity 0/750 Matter 300/300 Energy 65/125 System Corruption 0% Temperature Cool (9) Movement Flying (31) Location -10/Mines Parts ------- > --- POWER (1) -------- Light Ion Engine > --- PROPULSION (4) --- Flight Unit Flight Unit Flight Unit Flight Unit > --- UTILITY (3) ------ Heat Sink Heat Sink Improved Terrain Scanner > --- WEAPON (2) ------- Small Laser Mining Laser > --- INVENTORY (1) ---- Datajack Peak State ------------ > --- POWER ------------ Light Ion Engine > --- PROPULSION ------- Flight Unit Flight Unit Flight Unit Flight Unit > --- UTILITY ---------- Heat Sink Heat Sink Improved Terrain Scanner > --- WEAPON ----------- Small Laser Mining Laser > --- INVENTORY -------- Datajack [Rating: 12] Favorites ----------- Power Light Ion Engine Engine Light Ion Engine Propulsion Flight Unit Wheel Wheel Hover Unit Hover Unit Flight Unit Flight Unit Utility Heat Sink Device Heat Sink Weapon Small Laser Energy Gun Small Laser Special Weapon Mining Laser Special Melee Weapon Datajack Build | -11 -10 -10 ------- Run | Yrd Mat Min Slots Evolved 6 | 4 1 1 Power . | . . . Propulsion 3 | 1 1 1 Utility 2 | 2 . . Weapon 1 | 1 . . Parts Attached 19 | 5 12 2 Power 4 | 1 2 1 Engine 4 | 1 2 1 Core . | . . . Reactor . | . . . Propulsion 8 | 2 5 1 Treads . | . . . Leg . | . . . Wheel 2 | 2 . . Hover 2 | . 2 . Flight 4 | . 3 1 Utility 3 | 1 2 . Device 3 | 1 2 . Storage . | . . . Processor . | . . . Hackware . | . . . Protection . | . . . Artifact . | . . . Weapon 4 | 1 3 . Energy Gun 2 | 1 1 . Energy Cannon . | . . . Ballistic Gun . | . . . Ballistic Cannon . | . . . Launcher . | . . . Special Weapon 1 | . 1 . Impact Weapon . | . . . Slashing Weapon . | . . . Piercing Weapon . | . . . Special Melee Weapon 1 | . 1 . Unidentified Prototypes . | . . . Parts Lost 1 | . 1 . Power . | . . . Propulsion 1 | . 1 . Utility . | . . . Weapon . | . . . Highest Loss Streak 1 | . 1 . To Critical Strikes . | . . . Average Backups . | . . 1 Power . | . . . Propulsion . | . . . Utility . | . . . Weapon . | . . . Tool/Special . | . . . Unused Backups 2 | . 2 . Power . | . . . Propulsion 2 | . 2 . Utility . | . . . Weapon . | . . . Tool/Special . | . . . Average Slot Usage (%) 94 | . 93 100 Engine 11 | . 11 10 Wheel 3 | . 4 . Hover 4 | . 5 . Flight 21 | . 18 39 Device 30 | . 31 30 Energy Gun 10 | . 10 10 Special Weapon 4 | . 4 10 Special Melee Weapon 6 | . 7 . Peak Build Rating 12 | 7 11 12 Average Rating 10 | 4 10 11 On Entrance 6 | . 7 11 Avg Prop Armor Cover (%) . | . . . Naked Turns . | . . . Heaviest Build 8 | 5 8 8 Greatest Support 21 | 20 20 21 Greatest Overweight (x) 1 | . 1 . Average Overweight (x) . | . . . Largest Inventory Capacity 1 | 1 1 1 Average Capacity 1 | 1 1 1 Most Carried 1 | . 1 1 Average Carried . | . . 1 Final Capacity 1 | 1 1 1 Final Carried 1 | . 1 1 Class Distribution -------------------- 68% | Scavenger-Mutant 20% | Mutant 11% | Scavenger-Sprinter Dominant Class ---------------- Scavenger-Mutant | -10/Materials Scavenger-Sprinter | -10/Mines Resources | -11 -10 -10 ----------- Run | Yrd Mat Min Matter Collected 400 | 194 186 20 Remotely . | . . . Salvage Created 994 | 114 775 105 Parts 42 | 4 26 12 Haulers Intercepted 2 | . 2 . Recyclers Shooed . | . . . Parts Field Recycled . | . . . Retrieved Matter . | . . . Parts Self-Destructed . | . . . Prevented . | . . . Parts Restored . | . . . Kills | -11 -10 -10 ------- Run | Yrd Mat Min Combat Hostiles Destroyed 21 | . 15 6 Guns 19 | . 13 6 Cannons 2 | . 2 . Classes Destroyed 8 | 2 6 . Tunneler 1 | 1 . . Hauler 2 | . 2 . Recycler 1 | 1 . . Operator 1 | . 1 . Watcher 2 | . 2 . Swarmer 8 | . 3 5 Grunt 12 | . 11 1 Subdweller 1 | . 1 . Best Kill Streak 3 | 2 3 3 Combat Bots Only 3 | . 3 3 Max Kills in Single Turn 1 | 1 1 1 Gunslinging . | . . . Exploded . | . . . Melee . | . . . Uniques/NPCs Destroyed . | . . . Combat | -11 -10 -10 -------- Run | Yrd Mat Min Hostile Shots Fired 132 | . 93 39 Missed 41 | . 25 16 Hits 91 | . 68 23 Projectile 91 | . 68 23 Critical Strikes 1 | . . 1 Damage Taken 1174 | . 875 299 Core 963 | . 720 243 Absorbed by Shields . | . . . Redirected to Core 685 | . 503 182 Core Remaining (%) 100 | 100 . . Volleys Fired 299 | 11 260 28 Largest 2 | 1 2 2 Hottest 140 | 40 140 140 Shots Fired 310 | 11 268 31 Gun 287 | 11 248 28 Cannon . | . . . Launcher . | . . . Special 23 | . 20 3 Kinetic . | . . . Thermal 310 | 11 268 31 Explosive . | . . . Electromagnetic . | . . . Robot Hit Streak 11 | 5 11 10 Robot Miss Streak 5 | 1 5 2 Penetration Max . | . . . Secondary Targets . | . . . Shots Hit Robots 121 | 8 88 25 Core Hits 48 | 3 36 9 Critical Kills . | . . . Critical Parts Destroyed . | . . . Critical Strikes . | . . . Melee Attacks . | . . . Impact . | . . . Slashing . | . . . Piercing . | . . . Sneak Attacks . | . . . Combat Hostiles . | . . . Follow-up Attacks . | . . . Damage Inflicted 1479 | 89 1084 306 Guns 1281 | 89 934 258 Cannons . | . . . Explosions . | . . . Melee . | . . . Ramming . | . . . Kinetic . | . . . Thermal 1479 | 89 1084 306 Explosive . | . . . Electromagnetic . | . . . Impact . | . . . Slashing . | . . . Piercing . | . . . Highest Corruption . | . . . Average Corruption . | . . . Corruption Purged . | . . . Corruption Blocked . | . . . Overload Shots . | . . . Overflow Damage . | . . . Projectiles . | . . . Explosions . | . . . Melee . | . . . Knockbacks . | . . . Impact . | . . . Kinetic . | . . . Secondary . | . . . Self-Inflicted Damage 14 | . 14 . Shots 1 | . 1 . Rammed . | . . . Targets Rammed . | . . . Kicked . | . . . Crushed . | . . . Highest Temperature . | . . . Average Temperature . | . . . Received Heat Transfer 612 | . 465 147 Siege Activations . | . . . Martial Activations . | . . . Shielding Activations . | . . . Robots Disrupted . | . . . Combat Hostiles . | . . . Robots Corrupted . | . . . Combat Hostiles . | . . . Parts Fried . | . . . Impact Corruptions . | . . . Robots Melted . | . . . Combat Hostiles . | . . . Parts Melted 1 | 1 . . Heat Transferred 3275 | 200 2400 675 Parts Sabotaged . | . . . Parts Stolen . | . . . Parts Stripped . | . . . Power Chain Reactions . | . . . Alert | -11 -10 -10 ------- Run | Yrd Mat Min Maximum Alert Level 2 | . 2 1 Low Security (%) 78 | 100 87 14 Level 1 20 | . 11 85 Level 2 1 | . 1 . Level 3 . | . . . Level 4 . | . . . Level 5 . | . . . High Security . | . . . Max Security . | . . . Peak Influence 465 | 5 465 255 Initial 179 | . 3 179 Average 105 | 1 92 223 Influence Increases 1203 | 10 1037 156 Destroy 0b10 Robot/C 400 | . 280 120 Destroy 0b10 Robot/NC 35 | 10 25 . Destroy Leader 78 | . 58 20 Successful Hack 33 | . 33 . Disable Machine 390 | . 390 . Destroy Structure 207 | . 206 1 Lose Combat Pursuer 60 | . 45 15 Influence Decreases 958 | 5 581 372 Entered New Map 284 | . 2 282 Time Decay 554 | 5 459 90 Lost Part 10 | . 10 . Purge Threat 110 | . 110 . Squads Dispatched 2 | . 2 . Investigation 1 | . 1 . Extermination . | . . . Reinforcement 1 | . 1 . Assault . | . . . Garrison . | . . . Intercept . | . . . Searches Triggered . | . . . Construction Impeded . | . . . Haulers Reinforced . | . . . Active Scanning Responses . | . . . Cargo Convoy Interrupts . | . . . Stealth | -11 -10 -10 --------- Run | Yrd Mat Min Distress Signals 1 | . 1 . Communications Jammed . | . . . Distress Signals . | . . . Times Spotted 37 | . 28 9 Peak Tracking Total 5 | . 5 5 Tactical Retreats 5 | . 4 1 Traps | -11 -10 -10 ------- Run | Yrd Mat Min Traps Triggered 1 | . 1 . Indirectly . | . . . Trap Hack Attempts . | . . . Triggered . | . . . Disarmed . | . . . Reprogrammed . | . . . Reused . | . . . Traps Extracted . | . . . Installed . | . . . Triggered . | . . . Machines | -11 -10 -10 ---------- Run | Yrd Mat Min Machines Disabled 26 | . 26 . Max in Single Turn 4 | . 4 . Machines Repaired . | . . . Machines Dismantled . | . . . Machines Sabotaged . | . . . Overloaded Fab Kills . | . . . Hacking | -11 -10 -10 --------- Run | Yrd Mat Min Machines Accessed 10 | . 9 1 Terminals 8 | . 7 1 Fabricators . | . . . Repair Stations . | . . . Recycling Units 2 | . 2 . Scanalyzers . | . . . Garrison Access . | . . . Total Hacks 39 | . 36 3 Successful 21 | . 20 1 Failed 16 | . 14 2 Catastrophic 2 | . 2 . Database Lockouts 2 | . 2 . Manual 30 | . 27 3 Terminals 32 | . 29 3 Fabricators . | . . . Repair Stations . | . . . Recycling Units 7 | . 7 . Scanalyzers . | . . . Garrison Access . | . . . Terminal Hacks 7 | . 7 . Record 4 | . 4 . Robot Analysis 1 | . 1 . Unreport Threat 2 | . 2 . Fabricator Hacks . | . . . Repair Station Hacks . | . . . Recycling Unit Hacks 3 | . 3 . Report Inventory 2 | . 2 . Retrieve Components 1 | . 1 . Scanalyzer . | . . . Garrison Access Hacks . | . . . Unauthorized Hacks 11 | . 10 1 Terminals 9 | . 8 1 Botnet 4 | . 3 1 Skim 5 | . 5 . Fabricators . | . . . Repair Stations . | . . . Recycling Units 2 | . 2 . Reject 1 | . 1 . Mask 1 | . 1 . Scanalyzers . | . . . Garrison Access . | . . . Data Cores Recovered . | . . . Used . | . . . Hacking Detections 8 | . 7 1 Full Trace Events 1 | . 1 . Feedback Events . | . . . Feedback Blocked . | . . . Robot Schematics Acquired . | . . . Robots Built . | . . . Authchips . | . . . Time . | . . . Total Robot Build Rating . | . . . Part Schematics Acquired . | . . . Parts Built . | . . . Authchips . | . . . Time . | . . . Total Part Build Rating . | . . . Part Studies Acquired . | . . . Parts Repaired . | . . . Time . | . . . Parts Recycled . | . . . Recycled Matter . | . . . Retrieved Matter . | . . . Retrieved Components 10 | . 10 . Parts Scanalyzed . | . . . Part Schematics Acquired . | . . . Parts Damaged . | . . . Bothacking | -11 -10 -10 ------------ Run | Yrd Mat Min Used RIF Installer . | . . . Robots Hacked . | . . . Non-combat . | . . . Combat . | . . . Robot Hacks Applied . | . . . Relay Couplers Released . | . . . Fabnet Peak Effective % . | . . . Robots Rewired . | . . . Allies Hacked . | . . . Hacks Repelled . | . . . Allies | -11 -10 -10 -------- Run | Yrd Mat Min Total Allies . | . . . Largest Group . | . . . Highest-Rated Group . | . . . Highest-Rated Ally . | . . . Total Orders . | . . . Ally Attacks . | . . . Total Damage . | . . . Kills . | . . . Allies Corrupted . | . . . Allies Melted . | . . . Intel | -11 -10 -10 ------- Run | Yrd Mat Min Active Infowar (turns) 1543 | 12 1335 196 Terrain 1543 | 12 1335 196 Robot Analysis Total 1 | . 1 . Derelict Logs Recovered . | . . . Drone Launches . | . . . Drone Recoveries . | . . . Exploration | -11 -10 -10 ------------- Run | Yrd Mat Min Turns Passed 1589 | 58 1335 196 Spaces Moved 1357 | 36 1277 44 Core 1 | 1 . . Treads . | . . . Legs . | . . . Wheels 132 | 35 97 . Hover 252 | . 252 . Flight 972 | . 928 44 Fastest Speed 31 | 50 34 31 Average Speed 43 | 79 42 31 Slowest Speed 120 | 80 120 34 Overloaded Moves . | . . . Propulsion Burnouts . | . . . Robots Hopped . | . . . Potential Cave-ins . | . . . Cave-ins Triggered . | . . . Exploration Rate (%) 35 | 3 98 5 Regions Visited 2 Branch Regions 1 Pre-discovered Areas 1 | . 1 . Known Exits Taken 1 | . 1 . Unknown Exits Taken 1 | 1 . . Scrap Searched . | . . . Spaces Dug . | . . . Terrain Destroyed 228 | . 227 1 Melee . | . . . Projectile 2 | . 1 1 AOE 226 | . 226 . Terrain Rammed . | . . . Walls Destroyed . | . . . Machines Disabled . | . . . Actions | -11 -10 -10 --------- Run | Yrd Mat Min Total 1997 | 51 1757 189 Wait 297 | . 187 110 Move 1355 | 35 1276 44 Hop . | . . . Pick Up 4 | . 4 . Fast Attach 14 | 5 8 1 Attach 2 | . 2 . Detach 2 | . 2 . Swap 4 | . 3 1 Drop 9 | . 8 1 Fire 299 | 11 260 28 Melee . | . . . Ram . | . . . Kick . | . . . Crush . | . . . Escape Stasis . | . . . Rewire . | . . . Trap . | . . . Miscellaneous 11 | . 7 4 Route ------- -11/Scrapyard -10/Materials (discovered 6 exits: *Mat x3 / *Min x2 / Sub) -10/Mines (discovered 2 exits: Mat / *Sub) History --------- Turn | Location | Event 1 | -11/Scrapyard | Upgraded with Propulsion slot (x1) 1 | -11/Scrapyard | Upgraded with Utility slot (x2) 1 | -11/Scrapyard | Upgraded with Weapon slot (x1) 21 | -11/Scrapyard | Discovered new exit (range 14) 59 | -11/Scrapyard | Entered Materials 283 | -10/Materials | Discovered new exit (range 16) 361 | -10/Materials | Core integrity fell below 50% 456 | -10/Materials | Central database locked down 516 | -10/Materials | Discovered new exit (range 15) 591 | -10/Materials | Core integrity fell below 20% 707 | -10/Materials | Reached level 2 708 | -10/Materials | Upgraded with Propulsion slot (x1) 710 | -10/Materials | Discovered new exit (range 16) 759 | -10/Materials | Derelicts attacked the area 798 | -10/Materials | Discovered new exit (range 4) 827 | -10/Materials | Discovered new exit (range 6) 907 | -10/Materials | Build established: Scavenger-Mutant 919 | -10/Materials | Central database locked down 936 | -10/Materials | Discovered new exit (range 10) 1004 | -10/Materials | Identified exit to Mines 1004 | -10/Materials | Identified exit to Subcaves 1004 | -10/Materials | Identified exit to Materials 1044 | -10/Materials | Learned location of 1 exit from Storage 1097 | -10/Materials | Learned location of 3 exits from Materials 1108 | -10/Materials | Learned location of Subcaves (-10) 1131 | -10/Materials | Learned location of 1 exit from Recycling 1164 | -10/Materials | Learned location of 2 exits from Materials 1233 | -10/Materials | Reached level 3 1394 | -10/Materials | Entered Mines 1404 | -10/Mines | Reached level 4 1413 | -10/Mines | Discovered exit to Subcaves (range 9) 1414 | -10/Mines | Upgraded with Propulsion slot (x1) 1526 | -10/Mines | Discovered exit to Materials (range 15) 1590 | -10/Mines | Destroyed by G-47 Trooper with Particle Gun Last Messages --------------- Trojan loaded successfully. Testing... Terminal linked with 0 systems. Awaiting botnet instructions. 01445_ T-07 Excavator is excavating. 01451_ R-06 Scavenger collects Flight Unit. 01451_ R-06 Scavenger collects Lgt. Assault Rifle. 01453_ T-07 Excavator is excavating. 01454_ R-06 Scavenger collects Flight Unit. 01458_ T-07 Excavator is excavating. 01470_ U-05 Engineer lays Concrete. 01475_ U-05 Engineer builds a Wall. 01476_ T-07 Excavator is excavating. 01479_ U-05 Engineer builds a Wall. 01484_ Acquired 1 matter. 01518_ S-10 Pest destroyed. 01524_ R-06 Scavenger collects Lgt. Assault Rifle. 01526_ EXIT=FOUND: MATERIALS 01561_ G-34 Mercenary destroyed. 01565_ S-10 Pest destroyed. Map ----- +----------------------------------------------------+ | ???????????????????????????????????????????? | | ???????????????????????????????????????????? | | ???????????????????????????????????????????? | | ???????????????????????????????????????????? | | ???#?#??##?#???????????????????????????????? | | ############ ??????????????????????????????? | | #?######## ???????????????????????????? | | ########? ?????????????????????????? | | ######## ?????????????????????????? | | ######## ?? ???????????????????? | | ######### ? ??????????????????? | | ##########? ?#????????????????? | | ##?######## ? ???????????????? | | ######>#### ??? ?????????????? | | ###### # ###?#?#????????????? | | ##### #####?????????????? | | ##### ## ?####### ??????????? | | ##### # ###### ??????????? | | ######T############## ? ? ? ?????????? | | ### ########################? ?????????? | | ### ######################## ??????????? | | ### % ###############? #????????? | | ### ####### ############## #?????????? | | ### #######=########?#### ? ##????????? | | ### #######*########### ? ?????????? | | ##############!%%= @%#### ? ?? ????????? | | ####################g#### ? ??????? | | ####################r###?# #?? ?????????? | | #################### ##### ##?# ?????????? | | ####################%##### ##### #???????? | | #################### ## ####?#?????????? | | #################### ##?#####??#?#?????????? | | ######### ######??##?????????? | | ####?#### # ########### ####?###???????????? | | ######### #######?##########?#???????????? | | ?####### ###?###########?#????????????? | | #?#?#### #############?#?????????????? | | ??????## ###############?????????????? | | ???????## #########?####??????????????? | | ?????????# < ####?#?###?#?????????????????? | | ???????????? ####?##??##??????????????????? | | ???????????????????#???????????????????????? | | ???????????????????????????????????????????? | | ???????????????????????????????????????????? | | ???????????????????????????????????????????? | | ???????????????????????????????????????????? | | ???????????????????????????????????????????? | | ???????????????????????????????????????????? | | ???????????????????????????????????????????? | | ???????????????????????????????????????????? | +----------------------------------------------------+ Best States ------------- Heat Dissipation 63 Energy Generation 10 Energy Capacity 250 Matter Stores 300 Matter Capacity 300 Sight Range 16 Robot Scan Range 2 Terrain Scan Range 16 Terrain Scan Density 310 Evasion (%) 63 Offensive Hacking 5 Defensive Hacking 5 Item Schematics ----------------- None Robot Schematics ------------------ None Fabricated ------------ Nothing Repaired ---------- Nothing Studied --------- None Alien Tech Used ----------------- None Achievements -------------- None Challenges ------------ None RPGLIKE | -11 -10 -10 --------- Run | Yrd Mat Min Levels Raised 3 | . 2 1 XP Earned 7920 | 3000 3720 1200 XP Spent 5585 | 2990 1495 1100 Upgrades 20 | 11 8 1 Propulsion Slot 3 | 1 1 1 Utility Slot 2 | 2 . . Weapon Slot 1 | 1 . . Core Integrity 3 | . 3 . Heat Dissipation 3 | 2 1 . Mass Support 1 | . 1 . Inventory Capacity 1 | 1 . . Sensor Range 1 | 1 . . Terrain Scan Density 3 | 3 . . Hack Attack % 1 | . 1 . Hack Defense % 1 | . 1 . Protomatter Created 70 | . 48 22 Integrity Restored 210 | . 144 66 Core 210 | . 144 66 Protomatter Decayed . | . . . Game ------ Seed TeslaBottomlessScreen Manual? 0 Play Time 00:30:35 Cumulative 108.5 hours Start 2025.11.20 @ 11:11:47 End 2025.11.20 @ 11:27:28 Sessions 1 Manual Loads 0 Difficulty Rogue Special Mode Winter2019/RPGLIKE Game No. 89 Rogue 89 Adventurer 0 Explorer 0 Win Type - Total 0 Types 0/0/0/0/0/0/0/0/0/0 Lore% 62 Gallery% 41 Achievement% 40 Wizard Run 0 Options --------- Layout 0 ASCII 0 Keyboard 0 Movement Mouse Keybinds 0 Fullscreen 2 Font 24/Smallcaps Map View 76x50 Zoom Use 0% Tactical HUD 1 Map Filters NONE Filters NONE Steam 1 RUN: a2a6cf47-40dc-408d-9e9c-766e63809088